bitfinex-derivatives/quotes_SOLF0:USTF0_20251018
["timestamp","ask_amount","ask_price","bid_price","bid_amount"]
[1760796969128,2.86,184.21,184.16,45.54]
[1760796969534,2.86,184.21,184.14,4.8858]
[1760796969734,2.86,184.21,184.15,45.54]
[1760796970036,4.94241884,184.3,184.16,45.54]
[1760796970037,2.87,184.25,184.16,45.54]
[1760796970535,2.87,184.25,184.17,45.54]
[1760796970730,7.7532,184.25,184.17,50.4251]
[1760796971038,2.87,184.25,184.11,62.0]
[1760796971231,2.87,184.25,184.12,45.54]
[1760796971634,2.87,184.25,184.13,45.54]
[1760796972137,2.87,184.25,184.17,4.885]
[1760796972637,2.87,184.25,184.18,45.54]
[1760796973833,7.7521,184.29,184.18,45.54]
[1760796974137,7.7521,184.29,184.11,75.43739026]
[1760796974332,2.87,184.29,184.13,9.7726]
[1760796974535,2.87,184.34,184.13,13.43739026]
[1760796974734,4.1731154,184.33,184.13,13.43739026]
[1760796974931,2.87,184.34,184.13,29.71739026]
[1760796975129,2.87,184.34,184.15,13.43739026]
[1760796975334,2.87,184.34,184.25,4.8828]
[1760796975539,2.87,184.34,184.26,45.54]
[1760796976130,7.7497,184.38,184.28,4.8822]
[1760796976838,2.87,184.38,184.29,4.64]
[1760796977040,4.16920334,184.37,184.29,4.64]
[1760796977239,9.56536306,184.42,184.29,4.64]
[1760796977240,2.73,184.36,184.29,4.64]
[1760796977640,2.73,184.36,184.29,71.5218]
[1760796977836,2.73,184.36,184.29,9.5218]
[1760796978031,2.73,184.36,184.29,4.64]
[1760796978437,2.73,184.36,184.29,19.9]
[1760796978637,2.73,184.36,184.28,4.8821]
[1760796979041,2.73,184.36,184.29,20.12]
[1760796980840,2.73,184.36,184.29,82.12]
[1760796981241,2.73,184.36,184.29,62.0]
[1760796981437,2.73,184.36,184.29,45.54]
[1760796982243,2.73,184.41,184.19,9.7692]
[1760796982541,4.16441333,184.4,184.2,7.9]
[1760796982842,4.8804,184.36,184.26,4.8826]
[1760796983043,2.73,184.35,184.26,4.8826]
[1760796983547,2.73,184.35,184.27,45.52]
[1760796984844,2.73,184.35,184.27,50.4025]
[1760796985039,4.8798,184.38,184.27,45.52]
[1760796985946,7.6102,184.37,184.28,45.52]
[1760796986148,7.6102,184.37,184.29,45.52]
[1760796986347,7.6102,184.37,184.28,45.52]
[1760796986747,2.73,184.35,184.19,9.7692]
[1760796986940,2.73,184.35,184.2,45.52]
[1760796987443,2.73,184.35,184.19,9.7692]
[1760796987643,2.73,184.35,184.2,45.52]
[1760796987949,2.73,184.33,184.25,4.883]
[1760796988247,2.73,184.33,184.26,45.52]
[1760796988447,2.73,184.33,184.25,50.403]
[1760796988642,2.73,184.33,184.25,4.883]
[1760796988842,2.73,184.33,184.25,50.403]
[1760796989240,2.73,184.33,184.25,4.883]
[1760796989543,2.73,184.33,184.25,50.403]
[1760796990047,2.73,184.33,184.25,4.883]
[1760796990245,2.73,184.33,184.25,50.403]
[1760796991345,2.73,184.33,184.25,4.883]
[1760796991747,2.73,184.33,184.25,50.403]
[1760796992545,2.73,184.33,184.25,4.883]
[1760796992850,2.73,184.33,184.25,50.403]
[1760796993845,2.73,184.33,184.25,45.52]
[1760796994045,2.73,184.33,184.18,71.7698]
[1760796994441,2.73,184.33,184.19,45.52]
[1760796994645,2.73,184.33,184.18,71.7698]
[1760796994845,2.73,184.33,184.19,45.52]
[1760796995542,2.73,184.33,184.18,71.7698]
[1760796995747,2.73,184.33,184.19,45.52]
[1760796995948,7.6112,184.33,184.25,4.883]
[1760796996253,7.6112,184.33,184.25,45.52]
[1760796996548,2.73,184.33,184.18,71.7698]
[1760796996749,4.16342467,184.38,184.17,95.22210441]
[1760796996952,2.73,184.35,184.17,95.22210441]
[1760796997150,2.73,184.33,184.17,140.74210441]
[1760796997350,2.73,184.31,184.17,140.74210441]
[1760796997555,4.94241884,184.36,184.17,140.74210441]
[1760796997756,2.73,184.34,184.17,95.22210441]
[1760796997952,2.73,184.34,184.09,140.54]
[1760796997953,2.73,184.32,184.09,140.54]
[1760796998255,2.73,184.3,184.1,45.52]
[1760796998452,4.16249615,184.29,184.11,45.52]
[1760796998647,4.16249615,184.28,184.11,45.52]
[1760796998853,2.73,184.32,184.11,45.52]
[1760796999052,2.73,184.32,184.09,140.54]
[1760796999053,2.73,184.23,184.15,4.8858]
[1760796999250,2.73,184.23,184.15,50.4058]
[1760796999449,4.15989707,184.3,184.15,50.4058]
[1760796999450,7.6125,184.28,184.2,4.8843]
[1760796999755,2.73,184.36,184.21,62.0]
[1760796999955,2.73,184.34,184.2,43.8]
[1760797000155,2.73,184.36,184.21,4.884]
[1760797000350,4.16169942,184.35,184.21,4.884]
[1760797000556,2.73,184.36,184.22,4.64]
[1760797000858,2.73,184.34,184.22,4.64]
[1760797001058,4.8818,184.31,184.22,4.64]
[1760797001953,4.8818,184.31,184.23,15.8035]
[1760797002147,2.73,184.34,184.23,10.92]
[1760797002346,2.73,184.34,184.25,4.8831]
[1760797002952,2.73,184.34,184.25,66.8831]
[1760797003355,4.8812,184.33,184.25,66.8831]
[1760797003756,4.8812,184.33,184.25,4.8831]
[1760797004955,2.73,184.34,184.26,4.8828]
[1760797006351,4.8801,184.37,184.27,4.8825]
[1760797006552,7.6301,184.37,184.27,4.8825]
[1760797006955,2.75,184.42,184.26,62.0]
[1760797007261,2.75,184.4,184.26,62.0]
[1760797007559,2.75,184.38,184.13,9.7727]
[1760797007753,2.75,184.31,184.13,9.7727]
[1760797007958,2.75,184.31,184.14,45.52]
[1760797008160,2.75,184.31,184.13,9.7727]
[1760797008363,2.75,184.31,184.14,45.52]
[1760797008661,2.75,184.31,184.15,45.52]
[1760797008856,2.75,184.31,184.21,4.8841]
[1760797009056,4.16361563,184.37,184.2,19.2]
[1760797009252,4.16361563,184.36,184.09,156.82]
[1760797009562,4.16361563,184.35,184.09,156.82]
[1760797009758,4.8827,184.27,184.19,4.8846]
[1760797010358,2.75,184.28,184.16,4.8854]
[1760797010656,4.94241884,184.33,184.1,62.0]
[1760797010860,2.75,184.31,184.11,45.52]
[1760797011055,4.8842,184.22,184.13,4.8863]
[1760797011359,14.70531884,184.32,184.1,62.0]
[1760797011360,4.18133135,184.28,184.1,62.0]
[1760797011554,4.18133135,184.27,184.1,62.0]
[1760797011755,4.18133135,184.26,184.1,62.0]
[1760797011955,2.75,184.24,184.1,62.0]
[1760797012156,2.75,184.22,184.1,62.0]
[1760797012366,4.8853,184.18,184.1,62.0]
[1760797012558,4.8853,184.18,184.1,107.52]
[1760797012754,2.75,184.22,184.1,62.0]
[1760797012755,4.8845,184.2,184.1,62.0]
[1760797012959,4.8845,184.2,184.1,107.52]
[1760797013162,4.8845,184.2,184.1,62.0]
[1760797013361,7.634,184.22,184.11,50.4068]
[1760797013556,2.75,184.26,184.11,45.52]
[1760797013760,2.75,184.26,184.1,62.0]
[1760797014162,2.75,184.26,184.11,45.52]
[1760797014465,2.75,184.26,184.12,45.52]
[1760797014967,2.75,184.26,184.1,62.0]
[1760797014968,7.6339,184.23,184.13,50.4061]
[1760797015567,4.18084832,184.29,184.11,4.8869]
[1760797015761,4.18084832,184.28,184.12,45.52]
[1760797015961,2.75,184.26,184.12,45.52]
[1760797016159,4.99103627,184.3,184.11,4.8869]
[1760797016464,4.17782829,184.29,184.12,45.52]
[1760797016669,4.17782829,184.28,184.11,45.52]
[1760797016865,4.17782829,184.27,184.11,45.52]
[1760797017163,7.6347,184.2,184.11,45.52]
[1760797017563,7.6347,184.2,184.1,62.0]
[1760797017962,7.6347,184.2,184.11,45.52]
[1760797018358,7.6347,184.2,184.1,62.0]
[1760797018959,7.6347,184.2,184.09,145.4274]
[1760797018960,13.94122807,184.27,184.07,45.52]
[1760797019263,4.17582807,184.26,184.08,40.74]
[1760797019465,4.17582807,184.25,184.08,40.74]
[1760797019763,2.75,184.22,184.06,4.888]
[1760797019968,2.75,184.22,184.07,4.22]
[1760797020169,2.75,184.26,184.07,4.22]
[1760797020367,4.1730507,184.25,184.07,4.22]
[1760797020559,4.8858,184.16,184.07,4.22]
[1760797021063,4.8858,184.16,184.07,9.28]
[1760797021261,4.8858,184.16,184.07,4.8877]
[1760797021463,2.75,184.25,184.08,5.28]
[1760797021661,2.75,184.25,184.09,4.26]
[1760797021866,2.75,184.28,184.11,4.8867]
[1760797022066,4.17254349,184.27,184.11,4.8867]
[1760797022265,9.61809133,184.3,184.11,49.9867]
[1760797022266,4.17254349,184.26,184.11,49.9867]
[1760797022465,2.75,184.29,184.11,49.9867]
[1760797022660,2.75,184.27,184.11,4.8867]
[1760797022869,4.8845,184.21,184.11,45.2867]
[1760797023069,2.75,184.24,184.09,4.8873]
[1760797023365,4.99103627,184.28,184.08,43.02]
[1760797023569,38.4705563,184.27,184.09,34.78]
[1760797023864,2.75,184.25,184.1,28.12]
[1760797024068,2.75,184.26,184.0,26.0596]
[1760797024270,34.3,184.27,184.01,25.66]
[1760797024465,34.3,184.27,184.0,9.7796]
[1760797024466,2.75,184.19,184.0,9.7796]
[1760797024666,2.75,184.19,184.01,29.52]
[1760797024872,4.17032094,184.25,183.99,0.94420252]
[1760797024873,2.75,184.23,184.02,35.72]
[1760797025062,4.17032094,184.22,184.02,35.72]
[1760797025267,9.61513594,184.26,184.02,35.72]
[1760797025268,2.75,184.25,184.02,35.72]
[1760797025467,4.16815762,184.24,184.03,62.0]
[1760797025667,4.16815762,184.23,184.03,62.0]
[1760797025969,2.71,184.21,184.07,4.8877]
[1760797026169,2.71,184.21,184.04,45.54]
[1760797026369,2.71,184.21,184.03,62.0]
[1760797026370,2.71,184.21,184.05,45.54]
[1760797026770,2.71,184.21,184.03,62.0]
[1760797026963,2.71,184.21,184.04,45.54]
[1760797027267,2.71,184.21,184.05,45.54]
[1760797027460,4.8851,184.18,184.09,4.8872]
[1760797027665,2.71,184.25,184.08,45.54]
[1760797027963,2.71,184.23,184.08,45.54]
[1760797028163,2.71,184.25,184.08,45.54]
[1760797028362,4.17308353,184.24,184.08,45.54]
[1760797028563,2.71,184.22,184.03,62.0]
[1760797028765,2.71,184.21,184.04,45.54]
[1760797028964,4.8855,184.17,184.08,4.8875]
[1760797029372,4.8855,184.17,184.08,50.4275]
[1760797029772,4.8855,184.17,184.08,4.8875]
[1760797030363,4.8855,184.17,184.08,50.4275]
[1760797031364,4.8855,184.17,184.08,4.8875]
[1760797031574,4.886,184.15,184.07,45.54]
[1760797032173,4.886,184.15,184.06,50.4281]
[1760797032564,4.886,184.15,184.06,4.8881]
[1760797032771,4.8853,184.17,184.07,45.54]
[1760797033069,4.8853,184.17,184.03,62.0]
[1760797033070,9.7661,184.26,184.08,45.54]
[1760797033277,4.17739519,184.25,184.08,45.54]
[1760797033467,2.71,184.23,184.08,45.54]
[1760797033669,2.71,184.23,184.09,4.8873]
[1760797033972,2.71,184.22,184.1,45.54]
[1760797034173,4.8852,184.18,184.1,45.54]
[1760797035372,4.8852,184.18,184.09,4.8873]
[1760797035570,4.8852,184.18,184.1,45.54]
[1760797035775,4.8845,184.2,184.1,45.54]
[1760797036072,4.8845,184.2,184.11,45.54]
[1760797036273,4.8845,184.2,184.12,45.54]
[1760797036573,4.8845,184.2,184.13,45.54]
[1760797036975,4.8845,184.2,184.12,4.8864]
[1760797037176,4.8845,184.2,184.13,22.0]
[1760797037376,2.71,184.22,184.13,22.0]
[1760797037377,7.5941,184.22,184.13,22.0]
[1760797037676,7.5941,184.22,184.13,43.1462]
[1760797037880,7.5941,184.22,184.13,50.4262]
[1760797038077,4.8844,184.21,184.13,50.4262]
[1760797038576,4.8844,184.21,184.13,4.8862]
[1760797038876,4.8844,184.21,184.13,16.0462]
[1760797039074,4.8844,184.21,184.13,4.8862]
[1760797039277,4.8838,184.23,184.14,4.8859]
[1760797039674,2.85,184.26,184.13,31.82]
[1760797039975,2.85,184.26,184.16,4.8854]
[1760797040477,7.02206854,184.3,184.15,39.3]
[1760797040671,7.02206854,184.3,184.07,26.0557]
[1760797040672,2.85,184.3,184.07,26.0557]
[1760797040868,4.99103627,184.35,184.07,26.0557]
[1760797040869,2.85,184.28,184.14,4.886]
[1760797041073,2.85,184.32,184.15,45.54]
[1760797041268,2.85,184.3,184.15,45.54]
[1760797041469,4.17219834,184.29,184.15,45.54]
[1760797041673,2.85,184.32,184.15,45.54]
[1760797041876,2.85,184.3,184.15,45.54]
[1760797042177,4.8833,184.25,184.16,62.0]
[1760797043772,4.8827,184.27,184.16,62.0]
[1760797044178,4.8827,184.27,184.17,45.54]
[1760797044373,4.8831,184.26,184.18,4.8849]
[1760797044581,4.8831,184.26,184.16,107.54]
[1760797045480,4.8831,184.26,184.17,45.54]
[1760797045670,4.8831,184.26,184.17,50.4251]
[1760797045877,4.8831,184.26,184.17,4.8851]
[1760797046179,2.85,184.3,184.14,4.8859]
[1760797046478,2.85,184.28,184.15,8.56]
[1760797046684,2.85,184.28,184.08,9.7754]
[1760797046982,2.85,184.28,184.09,45.54]
[1760797047181,2.85,184.28,184.08,9.7754]
[1760797047383,2.85,184.28,184.09,45.54]
[1760797047580,2.85,184.32,184.09,45.54]
[1760797047776,2.85,184.3,184.08,9.7754]
[1760797047979,4.1757431,184.29,184.09,45.54]
[1760797048279,14.75323627,184.33,184.1,45.52]
[1760797048477,4.17700059,184.32,184.1,45.52]
[1760797048679,4.8839,184.23,184.15,4.8856]
[1760797049282,4.8839,184.23,184.15,66.8856]
[1760797050782,4.8841,184.22,184.15,66.8856]
[1760797050978,2.85,184.3,184.15,62.0]
[1760797051371,4.8828,184.27,184.16,45.52]
[1760797052579,4.8828,184.27,184.15,62.0]
[1760797052879,4.8828,184.27,184.16,45.52]
[1760797053380,2.85,184.3,184.16,45.52]
[1760797053581,2.85,184.3,184.17,45.52]
[1760797053983,4.8825,184.28,184.2,4.8843]
[1760797054380,4.8825,184.28,184.21,45.52]
[1760797054882,4.8825,184.28,184.21,4.8841]
[1760797055186,4.8825,184.28,184.21,50.4041]
[1760797056379,4.8825,184.28,184.21,4.8841]
[1760797056579,7.03564498,184.34,184.22,45.52]
[1760797056780,2.85,184.34,184.23,45.52]
[1760797057086,2.85,184.34,184.16,9.7711]
[1760797057283,2.85,184.34,184.17,45.52]
[1760797057484,4.8812,184.33,184.25,4.8831]
[1760797057681,2.85,184.34,184.26,45.52]
[1760797058082,2.85,184.34,184.25,4.8831]
[1760797058387,2.85,184.34,184.26,45.52]
[1760797058588,7.7308,184.34,184.26,45.52]
[1760797058988,7.7308,184.34,184.27,45.52]
[1760797059586,7.7308,184.34,184.25,4.8831]
[1760797059984,7.7308,184.34,184.26,45.52]
[1760797060179,4.8812,184.33,184.27,45.52]
[1760797060382,4.8812,184.33,184.25,4.8831]
[1760797060586,2.85,184.34,184.26,45.52]
[1760797060779,4.88,184.37,184.17,75.9935]
[1760797060984,4.88,184.37,184.18,45.52]
[1760797061283,2.85,184.38,184.18,45.52]
[1760797061284,4.879,184.41,184.2,75.9811]
[1760797061482,5.00695662,184.47,184.21,45.52]
[1760797061787,2.85,184.45,184.29,4.8819]
[1760797061986,7.7296,184.39,184.3,36.78]
[1760797062188,2.85,184.38,184.3,45.5]
[1760797062590,2.85,184.38,184.27,4.8826]
[1760797062591,4.8802,184.37,184.21,9.7682]
[1760797062791,2.85,184.38,184.27,4.8826]
[1760797063088,2.85,184.38,184.28,44.1]
[1760797063286,2.85,184.38,184.29,45.5]
[1760797063691,4.8804,184.36,184.29,45.5]
[1760797064792,2.85,184.34,184.25,45.5]
[1760797065688,4.8812,184.33,184.26,45.5]
[1760797065884,4.16761913,184.42,184.26,45.5]
[1760797066188,4.8807,184.35,184.27,35.12]
[1760797066391,2.68,184.36,184.25,4.8829]
[1760797066691,2.68,184.36,184.28,45.5]
[1760797067288,2.68,184.36,184.25,4.8829]
[1760797067483,2.68,184.36,184.26,45.5]
[1760797067889,2.68,184.36,184.25,66.8829]
[1760797068090,4.8809,184.34,184.25,66.8829]
[1760797068290,4.8809,184.34,184.26,45.5]
[1760797068491,4.8809,184.34,184.27,45.5]
[1760797068692,4.8809,184.34,184.26,4.8827]
[1760797068892,4.8809,184.34,184.27,45.5]
[1760797069791,4.8809,184.34,184.26,4.8827]
[1760797069988,4.8809,184.34,184.27,45.5]
[1760797070188,4.8809,184.34,184.28,45.5]
[1760797070989,4.8809,184.34,184.26,4.8827]
[1760797071194,4.8809,184.34,184.27,45.5]
[1760797072191,4.8809,184.34,184.28,45.5]
[1760797072595,4.8809,184.34,184.26,4.8827]
[1760797072794,4.8809,184.34,184.27,45.5]
[1760797074202,4.8809,184.34,184.26,4.8827]
[1760797074399,4.8809,184.34,184.27,45.5]
[1760797074993,4.8809,184.34,184.28,45.5]
[1760797075194,4.8809,184.34,184.26,4.8827]
[1760797075498,4.8809,184.34,184.27,4.8824]
[1760797075693,4.8809,184.34,184.27,50.3824]
[1760797076097,4.8809,184.34,184.27,4.8824]
[1760797076600,2.68,184.38,184.25,62.0]
[1760797076601,4.8803,184.36,184.28,45.5]
[1760797077399,4.8807,184.35,184.29,45.5]
[1760797079507,4.8807,184.35,184.27,4.8825]
[1760797079698,4.8807,184.35,184.28,45.48]
[1760797080309,4.8807,184.35,184.25,62.0]
[1760797080513,4.8807,184.35,184.26,45.48]
[1760797080900,4.8807,184.35,184.25,62.0]
[1760797081105,4.8807,184.35,184.29,4.882]
[1760797081305,7.5601,184.37,184.29,4.882]
[1760797081501,7.5601,184.37,184.3,45.48]
[1760797082109,6.84804567,184.42,184.32,4.8812]
[1760797082407,2.68,184.45,184.25,62.0]
[1760797082614,4.16948175,184.44,184.26,45.48]
[1760797082913,4.8799,184.38,184.31,4.8814]
[1760797083410,4.8793,184.4,184.34,4.8807]
[1760797083611,2.68,184.46,184.35,45.48]
[1760797083813,4.16982822,184.45,184.27,9.7651]
[1760797084012,2.68,184.46,184.28,45.48]
[1760797084309,4.17013649,184.45,184.27,9.7651]
[1760797084513,2.68,184.46,184.28,45.48]
[1760797084713,4.1691949,184.45,184.27,9.7651]
[1760797085013,4.8782,184.44,184.36,4.8801]
[1760797085215,4.8782,184.44,184.37,45.48]
[1760797085510,4.8782,184.44,184.38,45.48]
[1760797085717,7.5577,184.46,184.38,45.48]
[1760797085904,7.5577,184.46,184.39,45.48]
[1760797086109,7.5577,184.46,184.4,45.48]
[1760797086306,2.68,184.46,184.4,45.48]
[1760797086819,2.68,184.46,184.38,4.8795]
[1760797087014,2.83,184.51,184.38,4.8795]
[1760797087218,2.83,184.49,184.39,4.64]
[1760797087413,4.16282764,184.48,184.39,4.64]
[1760797087614,2.83,184.49,184.39,4.64]
[1760797087816,2.83,184.47,184.4,45.48]
[1760797088113,4.8778,184.46,184.4,45.48]
[1760797089218,4.8778,184.46,184.41,45.48]
[1760797089419,7.7078,184.46,184.41,45.48]
[1760797090017,2.83,184.45,184.41,45.48]
[1760797090417,2.83,184.45,184.38,66.8795]
[1760797090616,2.83,184.45,184.39,45.48]
[1760797090818,2.83,184.45,184.4,45.46]
[1760797091916,2.83,184.44,184.36,4.8802]
[1760797092713,2.83,184.44,184.37,45.46]
[1760797092911,2.83,184.44,184.38,45.46]
[1760797093317,2.83,184.44,184.36,4.8802]
[1760797093713,2.83,184.44,184.37,45.46]
[1760797093920,2.83,184.44,184.36,4.8802]
[1760797094119,2.83,184.44,184.36,66.8802]
[1760797094521,2.83,184.44,184.37,45.46]
[1760797094813,20.98668757,184.51,184.34,4.8807]
[1760797095019,5.00695662,184.49,184.35,5.94]
[1760797095214,2.83,184.47,184.36,5.94]
[1760797095420,2.83,184.45,184.36,5.94]
[1760797095624,2.83,184.44,184.36,5.94]
[1760797096019,4.8786,184.43,184.36,5.94]
[1760797096224,2.83,184.44,184.37,45.46]
[1760797096518,2.67,184.48,184.37,45.46]
[1760797096710,4.8779,184.45,184.38,43.18]
[1760797097714,4.8779,184.45,184.39,45.46]
[1760797098923,4.8779,184.45,184.37,4.8798]
[1760797099223,4.8779,184.45,184.38,45.46]
[1760797099618,4.8779,184.45,184.39,45.46]
[1760797101026,4.8779,184.45,184.37,4.8798]
[1760797101422,4.8779,184.45,184.38,45.46]
[1760797101620,4.8779,184.45,184.39,45.46]
[1760797102023,4.8779,184.45,184.37,4.8798]
[1760797102225,4.8779,184.45,184.38,45.46]
[1760797102724,4.8779,184.45,184.39,45.46]
[1760797102918,4.8779,184.45,184.4,45.46]
[1760797103124,2.67,184.44,184.4,45.46]
[1760797103524,2.67,184.44,184.37,4.8798]
[1760797103728,2.67,184.44,184.38,45.44]
[1760797104328,4.8779,184.45,184.38,45.44]
[1760797104329,4.8779,184.45,184.38,4.8795]
[1760797104528,4.8779,184.45,184.39,45.44]
[1760797104925,7.5474,184.47,184.39,45.44]
[1760797105120,7.5474,184.47,184.4,45.44]
[1760797105320,4.8777,184.46,184.4,45.44]
[1760797106335,4.8777,184.46,184.39,4.8793]
[1760797106725,4.8777,184.46,184.4,45.44]
[1760797107127,4.8777,184.46,184.41,45.44]
[1760797107328,4.8772,184.48,184.39,4.8793]
[1760797107631,2.67,184.5,184.39,4.8793]
[1760797107930,2.67,184.5,184.4,45.44]
[1760797108424,2.67,184.53,184.41,45.44]
[1760797108732,4.16853914,184.52,184.41,45.44]
[1760797108932,4.8775,184.47,184.39,4.8793]
[1760797109128,4.8775,184.47,184.37,66.8798]
[1760797109334,2.67,184.46,184.38,45.44]
[1760797109833,2.67,184.46,184.39,45.44]
[1760797110236,2.67,184.49,184.39,45.44]
[1760797110735,2.67,184.49,184.4,45.44]
[1760797111533,2.67,184.49,184.37,62.0]
[1760797111733,2.67,184.49,184.41,45.44]
[1760797111935,4.8775,184.47,184.41,45.44]
[1760797112436,4.8775,184.47,184.39,4.8792]
[1760797112636,4.8775,184.47,184.4,45.44]
[1760797114935,4.8775,184.47,184.39,4.8792]
[1760797115137,4.8775,184.47,184.4,45.44]
[1760797117042,4.8775,184.47,184.39,4.8792]
[1760797117240,4.8775,184.47,184.4,45.44]
[1760797117743,4.8777,184.46,184.4,45.44]
[1760797118041,4.8777,184.46,184.39,4.8792]
[1760797118243,4.8777,184.46,184.4,45.42]
[1760797119543,4.8777,184.46,184.4,50.299]
[1760797119742,4.8777,184.46,184.41,45.42]
[1760797119940,4.8777,184.46,184.4,4.879]
[1760797120140,4.8777,184.46,184.41,45.42]
[1760797120342,4.8771,184.48,184.42,45.42]
[1760797120743,4.8771,184.48,184.43,45.42]
[1760797120946,7.5471,184.48,184.43,45.42]
[1760797121143,7.5471,184.48,184.44,45.42]
[1760797121450,7.5471,184.48,184.41,4.8788]
[1760797121451,7.5471,184.48,184.45,45.42]
[1760797122148,7.5471,184.48,184.41,4.8788]
[1760797122552,7.5471,184.48,184.42,45.42]
[1760797122751,7.5471,184.48,184.41,4.8788]
[1760797122942,7.5471,184.48,184.42,45.42]
[1760797123346,7.5471,184.48,184.41,4.8788]
[1760797123543,7.5471,184.48,184.42,45.42]
[1760797123748,7.5471,184.48,184.43,45.42]
[1760797123749,4.8771,184.48,184.43,45.42]
[1760797124048,7.5471,184.48,184.44,45.42]
[1760797124444,7.5471,184.48,184.41,4.8788]
[1760797124643,7.5466,184.5,184.45,45.42]
[1760797124842,2.67,184.5,184.46,45.42]
[1760797125049,2.67,184.5,184.47,45.42]
[1760797125850,2.67,184.5,184.43,4.8782]
[1760797126043,4.8769,184.49,184.43,4.8782]
[1760797126251,4.8769,184.49,184.44,45.42]
[1760797126452,4.8769,184.49,184.43,4.8782]
[1760797126651,4.8769,184.49,184.44,45.42]
[1760797127347,4.8769,184.49,184.43,4.8782]
[1760797127554,4.8769,184.49,184.44,45.42]
[1760797128150,4.8764,184.51,184.44,50.2979]
[1760797128354,4.8764,184.51,184.44,45.42]
[1760797128554,4.8764,184.51,184.45,45.42]
[1760797128757,7.4964,184.51,184.37,62.0]
[1760797128958,7.4964,184.51,184.38,45.42]
[1760797129153,7.4964,184.51,184.39,45.42]
[1760797129455,2.62,184.51,184.45,4.8776]
[1760797129656,2.62,184.51,184.46,45.42]
[1760797129847,2.62,184.51,184.45,4.8776]
[1760797130053,2.62,184.51,184.46,45.42]
[1760797130252,2.62,184.55,184.37,62.0]
[1760797130454,4.17686982,184.54,184.38,45.42]
[1760797130646,4.17686982,184.53,184.39,45.42]
[1760797130852,2.62,184.51,184.4,45.42]
[1760797131158,2.62,184.51,184.41,45.4]
[1760797131358,2.62,184.51,184.42,45.4]
[1760797131760,2.62,184.49,184.37,62.0]
[1760797131955,2.62,184.49,184.38,45.4]
[1760797132158,2.62,184.49,184.37,62.0]
[1760797132352,2.62,184.49,184.39,45.4]
[1760797132960,4.8774,184.47,184.41,4.8788]
[1760797133356,4.8774,184.47,184.42,45.4]
[1760797133556,7.4974,184.47,184.41,4.8788]
[1760797133756,7.4974,184.47,184.42,45.4]
[1760797133956,7.4974,184.47,184.41,4.8788]
[1760797134366,7.4974,184.47,184.42,45.4]
[1760797135068,4.8769,184.49,184.42,50.2785]